[Event "Grandmaster Triathlon - Blitz (GM2)"]
[Site "Biel, Switzerland"]
[Date "2026.07.19"]
[Round "6.3"]
[White "Yip, Carissa"]
[Black "Finek, Vaclav"]
[Result "0-1"]
[TimeControl "3 + 2"]
[WhiteTitle "-"]
[BlackTitle "-"]
[WhiteFideId "2090732"]
[BlackFideId "23718293"]
[WhiteElo "2369"]
[BlackElo "2504"]

1. e4 {[%clk 00:03:04]} {[%emt 00:17:53]} c5 {[%clk 00:03:03]} {[%emt
00:00:01]} 2. Nf3 {[%clk 00:03:04]} {[%emt 00:00:01]} g6 {[%clk 00:03:04]} 3.
c3 {[%clk 00:03:01]} {[%emt 00:00:05]} d5 {[%clk 00:03:05]} {[%emt 00:00:01]} 4.
exd5 {[%clk 00:03:02]} {[%emt 00:00:02]} Qxd5 {[%clk 00:03:06]} {[%emt
00:00:02]} 5. d4 {[%clk 00:03:03]} Bg7 {[%clk 00:03:08]} 6. Nbd2 {[%clk
00:03:03]} {[%emt 00:00:01]} Nf6 {[%clk 00:03:02]} {[%emt 00:00:08]} 7. Bc4
{[%clk 00:03:03]} {[%emt 00:00:03]} Qd6 {[%clk 00:02:58]} {[%emt 00:00:06]} 8.
O-O {[%clk 00:03:02]} {[%emt 00:00:03]} O-O {[%clk 00:02:58]} {[%emt 00:00:02]}
9. Nb3 {[%clk 00:02:58]} {[%emt 00:00:06]} cxd4 {[%clk 00:02:52]} {[%emt
00:00:08]} 10. Nbxd4 {[%clk 00:02:58]} {[%emt 00:00:02]} a6 {[%clk 00:02:50]}
{[%emt 00:00:05]} 11. Qe2 {[%clk 00:02:50]} {[%emt 00:00:09]} b5 {[%clk
00:02:39]} {[%emt 00:00:14]} 12. Bb3 {[%clk 00:02:51]} {[%emt 00:00:02]} Bb7
{[%clk 00:02:40]} 13. Rd1 {[%clk 00:02:40]} {[%emt 00:00:13]} Qc7 {[%clk
00:02:35]} {[%emt 00:00:07]} 14. a4 {[%clk 00:02:35]} {[%emt 00:00:07]} bxa4
{[%clk 00:01:57]} {[%emt 00:00:40]} 15. Bxa4 {[%clk 00:02:31]} {[%emt
00:00:05]} Ne4 {[%clk 00:01:36]} {[%emt 00:00:23]} 16. Bc2 {[%clk 00:02:18]}
{[%emt 00:00:15]} Nd6 {[%clk 00:01:26]} {[%emt 00:00:12]} 17. Bf4 {[%clk
00:02:11]} {[%emt 00:00:08]} Nc6 {[%clk 00:01:15]} {[%emt 00:00:13]} 18. Nxc6
{[%clk 00:01:35]} {[%emt 00:00:38]} Bxc6 {[%clk 00:01:16]} {[%emt 00:00:01]} 19.
Nd4 {[%clk 00:01:36]} Bb7 {[%clk 00:01:15]} {[%emt 00:00:04]} 20. Be5 {[%clk
00:00:40]} {[%emt 00:00:57]} Bxe5 {[%clk 00:01:15]} {[%emt 00:00:02]} 21. Qxe5
{[%clk 00:00:41]} Rfc8 {[%clk 00:01:16]} {[%emt 00:00:01]} 22. Bd3 {[%clk
00:00:38]} {[%emt 00:00:05]} Ne8 {[%clk 00:00:51]} {[%emt 00:00:27]} 23. Qxc7
{[%clk 00:00:24]} {[%emt 00:00:16]} Nxc7 {[%clk 00:00:49]} {[%emt 00:00:03]} 24.
Ra5 {[%clk 00:00:24]} {[%emt 00:00:03]} Rab8 {[%clk 00:00:49]} {[%emt
00:00:02]} 25. h3 {[%clk 00:00:17]} {[%emt 00:00:08]} Ba8 {[%clk 00:00:48]}
{[%emt 00:00:04]} 26. Rd2 {[%clk 00:00:14]} {[%emt 00:00:05]} Rb6 {[%clk
00:00:49]} {[%emt 00:00:01]} 27. Re2 {[%clk 00:00:13]} {[%emt 00:00:03]} Kf8
{[%clk 00:00:50]} {[%emt 00:00:01]} 28. Rae5 {[%clk 00:00:11]} {[%emt
00:00:04]} Nd5 {[%clk 00:00:45]} {[%emt 00:00:07]} 29. g3 {[%clk 00:00:10]}
{[%emt 00:00:03]} Rd8 {[%clk 00:00:32]} {[%emt 00:00:16]} 30. Be4 {[%clk
00:00:07]} {[%emt 00:00:05]} e6 {[%clk 00:00:33]} {[%emt 00:00:01]} 31. Bg2
{[%clk 00:00:07]} {[%emt 00:00:02]} a5 {[%clk 00:00:29]} {[%emt 00:00:07]} 32.
Rd2 {[%clk 00:00:07]} {[%emt 00:00:01]} Rc8 {[%clk 00:00:30]} {[%emt 00:00:01]}
33. Kh2 {[%clk 00:00:07]} {[%emt 00:00:02]} a4 {[%clk 00:00:30]} {[%emt
00:00:02]} 34. h4 {[%clk 00:00:08]} {[%emt 00:00:01]} Nf6 {[%clk 00:00:22]}
{[%emt 00:00:10]} 35. Kh3 {[%clk 00:00:08]} {[%emt 00:00:02]} Bxg2+ {[%clk
00:00:17]} {[%emt 00:00:06]} 36. Kxg2 {[%clk 00:00:09]} Rcb8 {[%clk 00:00:19]}
37. Ree2 {[%clk 00:00:09]} {[%emt 00:00:02]} Rc8 {[%clk 00:00:15]} {[%emt
00:00:06]} 38. Nf3 {[%clk 00:00:09]} {[%emt 00:00:02]} a3 {[%clk 00:00:12]}
{[%emt 00:00:05]} 39. bxa3 {[%clk 00:00:10]} Rxc3 {[%clk 00:00:13]} 40. Ra2
{[%clk 00:00:12]} Ra6 {[%clk 00:00:15]} 41. a4 {[%clk 00:00:12]} {[%emt
00:00:01]} Rc4 {[%clk 00:00:16]} 42. a5 {[%clk 00:00:12]} {[%emt 00:00:02]} Rc5
{[%clk 00:00:18]} 43. Rec2 {[%clk 00:00:05]} {[%emt 00:00:09]} Rxc2 {[%clk
00:00:17]} {[%emt 00:00:03]} 44. Rxc2 {[%clk 00:00:06]} Rxa5 {[%clk 00:00:19]}
{[%emt 00:00:01]} 45. Kf1 {[%clk 00:00:06]} {[%emt 00:00:02]} h6 {[%clk
00:00:20]} 46. Ke2 {[%clk 00:00:07]} {[%emt 00:00:01]} Nd5 {[%clk 00:00:21]}
{[%emt 00:00:01]} 47. Rd2 {[%clk 00:00:07]} {[%emt 00:00:01]} Kg7 {[%clk
00:00:22]} 48. Nd4 {[%clk 00:00:08]} {[%emt 00:00:01]} Nc3+ {[%clk 00:00:22]}
{[%emt 00:00:02]} 49. Kf3 {[%clk 00:00:09]} {[%emt 00:00:01]} Rd5 {[%clk
00:00:21]} {[%emt 00:00:02]} 50. Ke3 {[%clk 00:00:06]} {[%emt 00:00:05]} Re5+
{[%clk 00:00:18]} {[%emt 00:00:06]} 51. Kf3 {[%clk 00:00:06]} {[%emt 00:00:02]}
Ra5 {[%clk 00:00:14]} {[%emt 00:00:05]} 52. Kg2 {[%clk 00:00:06]} {[%emt
00:00:03]} Ne4 {[%clk 00:00:13]} {[%emt 00:00:04]} 53. Re2 {[%clk 00:00:07]}
{[%emt 00:00:01]} Nf6 {[%clk 00:00:14]} {[%emt 00:00:02]} 54. Nf3 {[%clk
00:00:07]} {[%emt 00:00:01]} g5 {[%clk 00:00:11]} {[%emt 00:00:05]} 55. hxg5
{[%clk 00:00:08]} hxg5 {[%clk 00:00:12]} {[%emt 00:00:01]} 56. Re5 {[%clk
00:00:09]} {[%emt 00:00:01]} Rxe5 {[%clk 00:00:13]} 57. Nxe5 {[%clk 00:00:10]}
Nd5 {[%clk 00:00:15]} 58. f3 {[%clk 00:00:11]} {[%emt 00:00:02]} Kf6 {[%clk
00:00:16]} 59. Ng4+ {[%clk 00:00:11]} {[%emt 00:00:02]} Ke7 {[%clk 00:00:17]}
60. Kf2 {[%clk 00:00:12]} {[%emt 00:00:01]} f5 {[%clk 00:00:19]} 61. Ne5 {[%clk
00:00:13]} f4 {[%clk 00:00:08]} {[%emt 00:00:13]} 62. gxf4 {[%clk 00:00:12]}
{[%emt 00:00:03]} gxf4 {[%clk 00:00:09]} {[%emt 00:00:01]} 63. Ke2 {[%clk
00:00:11]} {[%emt 00:00:02]} Kd6 {[%clk 00:00:10]} 64. Nf7+ {[%clk 00:00:12]}
Ke7 {[%clk 00:00:10]} {[%emt 00:00:02]} 65. Ne5 {[%clk 00:00:13]} Kf6 {[%clk
00:00:11]} 66. Nd7+ {[%clk 00:00:12]} {[%emt 00:00:03]} Kf5 {[%clk 00:00:12]}
{[%emt 00:00:01]} 67. Kf2 {[%clk 00:00:09]} {[%emt 00:00:04]} e5 {[%clk
00:00:11]} {[%emt 00:00:03]} 68. Nc5 {[%clk 00:00:09]} {[%emt 00:00:02]} Ne7
{[%clk 00:00:12]} 69. Nd3 {[%clk 00:00:09]} {[%emt 00:00:02]} Ke6 {[%clk
00:00:13]} {[%emt 00:00:01]} 70. Nc5+ {[%clk 00:00:10]} {[%emt 00:00:01]} Kd5
{[%clk 00:00:14]} 71. Ne4 {[%clk 00:00:10]} {[%emt 00:00:02]} Nf5 {[%clk
00:00:12]} {[%emt 00:00:04]} 72. Ng5 {[%clk 00:00:10]} {[%emt 00:00:01]} Kd4
{[%clk 00:00:13]} {[%emt 00:00:01]} 73. Nf7 {[%clk 00:00:10]} {[%emt 00:00:02]}
Ne7 {[%clk 00:00:14]} {[%emt 00:00:02]} 74. Ng5 {[%clk 00:00:10]} Nc6 {[%clk
00:00:16]} 75. Ne4 {[%clk 00:00:10]} {[%emt 00:00:02]} Nb4 {[%clk 00:00:16]}
{[%emt 00:00:03]} 76. Ng5 {[%clk 00:00:09]} {[%emt 00:00:02]} Kd3 {[%clk
00:00:17]} {[%emt 00:00:01]} 77. Nf7 {[%clk 00:00:08]} {[%emt 00:00:02]} Nc6
{[%clk 00:00:18]} {[%emt 00:00:01]} 78. Nd6 {[%clk 00:00:09]} Kc3 {[%clk
00:00:11]} {[%emt 00:00:09]} 79. Nf7 {[%clk 00:00:08]} {[%emt 00:00:03]} Kd2
{[%clk 00:00:12]} {[%emt 00:00:01]} 80. Nd6 {[%clk 00:00:08]} {[%emt 00:00:02]}
Nb4 {[%clk 00:00:09]} {[%emt 00:00:05]} 81. Nc4+ {[%clk 00:00:09]} {[%emt
00:00:01]} Kc3 {[%clk 00:00:11]} 82. Nd6 {[%clk 00:00:04]} {[%emt 00:00:07]}
Kd4 {[%clk 00:00:05]} {[%emt 00:00:08]} 83. Ke2 {[%clk 00:00:05]} {[%emt
00:00:01]} Kd5 {[%clk 00:00:05]} {[%emt 00:00:02]} 84. Ne4 {[%emt 00:00:03]}
Nc2 {[%clk 00:00:06]} 85. Nf6+ {[%clk 00:00:05]} {[%emt 00:00:02]} Kc4 {[%clk
00:00:07]} {[%emt 00:00:02]} 86. Ne4 {[%clk 00:00:04]} {[%emt 00:00:02]} Nd4+
{[%clk 00:00:07]} {[%emt 00:00:01]} 87. Kf2 {[%clk 00:00:05]} Ne6 {[%clk
00:00:08]} {[%emt 00:00:02]} 88. Nf6 {[%clk 00:00:05]} {[%emt 00:00:02]} Nc5
{[%clk 00:00:09]} {[%emt 00:00:01]} 89. Ng4 {[%clk 00:00:05]} {[%emt 00:00:02]}
Kd4 {[%clk 00:00:09]} {[%emt 00:00:02]} 90. Ke2 {[%clk 00:00:05]} {[%emt
00:00:02]} Nd7 {[%clk 00:00:09]} {[%emt 00:00:02]} 91. Kf2 {[%clk 00:00:05]}
{[%emt 00:00:02]} Kd3 {[%clk 00:00:10]} {[%emt 00:00:01]} 92. Nh6 {[%clk
00:00:04]} {[%emt 00:00:03]} Nf6 {[%clk 00:00:05]} {[%emt 00:00:07]} 93. Nf7
{[%clk 00:00:05]} {[%emt 00:00:01]} Kd4 {[%clk 00:00:06]} 94. Ng5 {[%clk
00:00:06]} {[%emt 00:00:01]} Nd5 {[%clk 00:00:05]} {[%emt 00:00:03]} 95. Ne6+
{[%clk 00:00:06]} {[%emt 00:00:01]} Kc4 {[%clk 00:00:06]} {[%emt 00:00:01]} 96.
Ng5 {[%clk 00:00:07]} {[%emt 00:00:01]} Nc3 {[%clk 00:00:06]} {[%emt 00:00:02]}
97. Ne6 {[%clk 00:00:06]} {[%emt 00:00:03]} Kd3 {[%clk 00:00:07]} {[%emt
00:00:02]} 98. Nc5+ {[%clk 00:00:06]} {[%emt 00:00:02]} Kd4 {[%clk 00:00:05]}
{[%emt 00:00:04]} 99. Ne6+ {[%emt 00:00:03]} Kc4 100. Ng5 {[%clk 00:00:07]} Kd3
{[%clk 00:00:06]} {[%emt 00:00:02]} 101. Ne6 {[%clk 00:00:07]} {[%emt
00:00:01]} Kd2 {[%clk 00:00:06]} {[%emt 00:00:01]} 102. Nc5 {[%clk 00:00:07]}
{[%emt 00:00:03]} Nd1 {[%clk 00:00:07]} {[%emt 00:00:01]} 103. Kf1 {[%clk
00:00:05]} {[%emt 00:00:03]} Nb2 {[%clk 00:00:09]} {[%emt 00:00:02]} 104. Nd7
{[%clk 00:00:04]} {[%emt 00:00:03]} Nd3 {[%clk 00:00:10]} 105. Nf6 {[%clk
00:00:04]} {[%emt 00:00:02]} Ke3 {[%clk 00:00:11]} 106. Kg2 {[%clk 00:00:03]}
{[%emt 00:00:02]} Ne1+ {[%clk 00:00:12]} {[%emt 00:00:01]} 107. Kh3 {[%clk
00:00:03]} {[%emt 00:00:01]} Kxf3 {[%clk 00:00:12]} {[%emt 00:00:02]} 0-1

[Event "Grandmaster Triathlon - Blitz (GM2)"]
[Site "Biel, Switzerland"]
[Date "2026.07.19"]
[Round "7.1"]
[White "Xiao, Tong(Qd)"]
[Black "Finek, Vaclav"]
[Result "1/2-1/2"]
[TimeControl "3 + 2"]
[WhiteTitle "-"]
[BlackTitle "-"]
[WhiteFideId "8622388"]
[BlackFideId "23718293"]
[WhiteElo "2465"]
[BlackElo "2504"]

1. e4 {[%clk 00:03:03]} c5 {[%clk 00:03:04]} {[%emt 00:00:01]} 2. Nf3 {[%clk
00:03:04]} {[%emt 00:00:01]} g6 {[%clk 00:03:05]} 3. d4 {[%clk 00:03:05]}
{[%emt 00:00:02]} cxd4 {[%clk 00:03:06]} 4. Nxd4 {[%clk 00:03:06]} Bg7 {[%clk
00:03:07]} 5. c4 {[%clk 00:03:07]} Nc6 {[%clk 00:03:08]} 6. Be3 {[%clk
00:03:08]} Qa5+ {[%clk 00:03:09]} {[%emt 00:00:01]} 7. Nc3 {[%clk 00:03:05]}
{[%emt 00:00:04]} d6 {[%clk 00:03:11]} {[%emt 00:00:01]} 8. Qd2 {[%clk
00:03:04]} {[%emt 00:00:04]} Nxd4 {[%clk 00:03:11]} {[%emt 00:00:01]} 9. Bxd4
{[%clk 00:03:05]} Bxd4 {[%clk 00:03:11]} {[%emt 00:00:01]} 10. Qxd4 {[%clk
00:03:06]} {[%emt 00:00:01]} Nf6 {[%clk 00:03:12]} 11. Be2 {[%clk 00:03:05]}
{[%emt 00:00:03]} O-O {[%clk 00:03:13]} {[%emt 00:00:02]} 12. O-O {[%clk
00:03:05]} {[%emt 00:00:01]} Be6 {[%clk 00:03:14]} {[%emt 00:00:01]} 13. b3
{[%clk 00:03:02]} {[%emt 00:00:05]} Rfc8 {[%clk 00:03:12]} {[%emt 00:00:04]} 14.
Rac1 {[%clk 00:03:01]} {[%emt 00:00:03]} Qc5 {[%clk 00:03:08]} {[%emt
00:00:06]} 15. Qd3 {[%clk 00:02:58]} {[%emt 00:00:04]} Nd7 {[%clk 00:03:02]}
{[%emt 00:00:09]} 16. Rfe1 {[%clk 00:02:57]} {[%emt 00:00:03]} Ne5 {[%clk
00:03:00]} {[%emt 00:00:04]} 17. Qd2 {[%clk 00:02:58]} a6 {[%clk 00:02:48]}
{[%emt 00:00:15]} 18. Bf1 {[%clk 00:02:57]} {[%emt 00:00:03]} Nd7 {[%clk
00:02:34]} {[%emt 00:00:16]} 19. Nd5 {[%clk 00:02:48]} {[%emt 00:00:10]} Re8
{[%clk 00:02:35]} {[%emt 00:00:01]} 20. h4 {[%clk 00:02:37]} {[%emt 00:00:13]}
Bxd5 {[%clk 00:02:25]} {[%emt 00:00:12]} 21. exd5 {[%clk 00:02:37]} {[%emt
00:00:02]} Nf6 {[%clk 00:02:19]} {[%emt 00:00:08]} 22. Re3 {[%clk 00:02:24]}
{[%emt 00:00:16]} e5 {[%clk 00:01:52]} {[%emt 00:00:28]} 23. dxe6 {[%clk
00:02:24]} {[%emt 00:00:02]} Rxe6 {[%clk 00:01:53]} 24. Rxe6 {[%clk 00:02:10]}
{[%emt 00:00:16]} fxe6 {[%emt 00:00:03]} 25. Re1 {[%clk 00:02:10]} Re8 {[%clk
00:01:51]} {[%emt 00:00:05]} 26. g3 {[%clk 00:02:00]} {[%emt 00:00:12]} d5
{[%clk 00:01:31]} {[%emt 00:00:22]} 27. Qg5 {[%clk 00:01:24]} {[%emt 00:00:38]}
Kf7 {[%clk 00:01:07]} {[%emt 00:00:26]} 28. Bg2 {[%clk 00:01:12]} {[%emt
00:00:14]} Qd4 {[%clk 00:01:02]} {[%emt 00:00:07]} 29. Bf3 {[%clk 00:00:19]}
{[%emt 00:00:54]} Re7 {[%clk 00:00:42]} {[%emt 00:00:23]} 30. cxd5 {[%clk
00:00:13]} {[%emt 00:00:08]} exd5 {[%clk 00:00:34]} {[%emt 00:00:10]} 31. Rd1
{[%clk 00:00:14]} Qe5 {[%clk 00:00:25]} {[%emt 00:00:11]} 32. Bxd5+ {[%clk
00:00:08]} {[%emt 00:00:07]} Nxd5 {[%clk 00:00:26]} 33. Rxd5 {[%clk 00:00:10]}
Qxg5 {[%clk 00:00:17]} {[%emt 00:00:12]} 34. hxg5 {[%clk 00:00:10]} {[%emt
00:00:01]} Ke6 {[%clk 00:00:18]} 35. Rc5 {[%clk 00:00:07]} {[%emt 00:00:05]}
Kd6 {[%clk 00:00:19]} {[%emt 00:00:01]} 36. Rc2 {[%clk 00:00:05]} {[%emt
00:00:04]} Kd5 {[%clk 00:00:20]} {[%emt 00:00:02]} 37. Kg2 {[%clk 00:00:05]}
{[%emt 00:00:02]} Kd4 {[%clk 00:00:22]} 38. Rc4+ {[%clk 00:00:04]} {[%emt
00:00:02]} Kd5 {[%clk 00:00:17]} {[%emt 00:00:07]} 39. a4 {[%clk 00:00:04]}
{[%emt 00:00:01]} b5 {[%clk 00:00:18]} {[%emt 00:00:01]} 40. axb5 {[%clk
00:00:05]} axb5 {[%clk 00:00:19]} 41. Rc8 {[%clk 00:00:04]} {[%emt 00:00:04]}
Re5 {[%clk 00:00:08]} {[%emt 00:00:12]} 42. b4 {[%clk 00:00:04]} {[%emt
00:00:02]} Kd6 {[%clk 00:00:08]} {[%emt 00:00:02]} 43. Rh8 {[%clk 00:00:04]}
{[%emt 00:00:02]} Rxg5 {[%clk 00:00:07]} {[%emt 00:00:03]} 44. Rxh7 {[%clk
00:00:05]} Ke6 {[%clk 00:00:07]} {[%emt 00:00:02]} 45. Rb7 {[%clk 00:00:04]}
{[%emt 00:00:02]} Rd5 {[%clk 00:00:08]} {[%emt 00:00:01]} 46. f4 {[%clk
00:00:05]} {[%emt 00:00:02]} Kf5 {[%clk 00:00:08]} {[%emt 00:00:02]} 47. Kh3
{[%clk 00:00:05]} {[%emt 00:00:02]} g5 {[%clk 00:00:04]} {[%emt 00:00:05]} 48.
fxg5 {[%clk 00:00:06]} {[%emt 00:00:01]} Kxg5 {[%clk 00:00:05]} 49. Rc7 {[%clk
00:00:04]} {[%emt 00:00:04]} Kf5 {[%clk 00:00:06]} {[%emt 00:00:01]} 50. Rb7
{[%clk 00:00:04]} {[%emt 00:00:02]} Kg5 {[%clk 00:00:07]} {[%emt 00:00:01]} 51.
Rb6 {[%clk 00:00:04]} {[%emt 00:00:02]} Kf5 {[%clk 00:00:07]} {[%emt 00:00:02]}
52. Rc6 {[%clk 00:00:05]} Re5 {[%clk 00:00:06]} {[%emt 00:00:04]} 53. Rc3
{[%clk 00:00:05]} {[%emt 00:00:03]} Rd5 {[%clk 00:00:06]} {[%emt 00:00:02]} 54.
Rc8 {[%clk 00:00:04]} {[%emt 00:00:02]} Kg6 {[%clk 00:00:04]} {[%emt 00:00:04]}
55. Rc6+ {[%clk 00:00:04]} {[%emt 00:00:02]} Kf5 {[%clk 00:00:05]} {[%emt
00:00:01]} 56. Rc1 {[%clk 00:00:04]} {[%emt 00:00:01]} Kg6 {[%clk 00:00:06]}
{[%emt 00:00:02]} 57. Rc6+ {[%clk 00:00:04]} {[%emt 00:00:02]} Kf5 {[%clk
00:00:07]} {[%emt 00:00:01]} 58. Rb6 {[%clk 00:00:06]} Kg5 {[%clk 00:00:07]}
{[%emt 00:00:02]} 59. Rb8 {[%clk 00:00:04]} {[%emt 00:00:04]} Kf5 {[%clk
00:00:08]} {[%emt 00:00:01]} 60. Rf8+ {[%clk 00:00:04]} {[%emt 00:00:02]} Kg5
{[%clk 00:00:08]} {[%emt 00:00:02]} 61. Rf4 {[%clk 00:00:05]} Rd3 {[%clk
00:00:05]} {[%emt 00:00:05]} 62. Rg4+ {[%clk 00:00:06]} Kf5 {[%clk 00:00:06]}
{[%emt 00:00:01]} 63. Kh4 {[%clk 00:00:07]} {[%emt 00:00:01]} Kf6 {[%clk
00:00:05]} {[%emt 00:00:03]} 64. Kh5 {[%clk 00:00:05]} {[%emt 00:00:04]} Rb3
{[%clk 00:00:04]} {[%emt 00:00:03]} 65. Rf4+ {[%clk 00:00:04]} {[%emt
00:00:03]} Ke5 {[%clk 00:00:05]} 66. Kg4 {[%clk 00:00:05]} Rc3 {[%clk
00:00:06]} 67. Kh4 {[%clk 00:00:05]} {[%emt 00:00:02]} Rb3 {[%clk 00:00:06]}
{[%emt 00:00:02]} 68. Rg4 {[%clk 00:00:04]} {[%emt 00:00:02]} Kf6 {[%clk
00:00:08]} {[%emt 00:00:01]} 69. Re4 {[%clk 00:00:04]} {[%emt 00:00:01]} Kf5
{[%clk 00:00:08]} {[%emt 00:00:02]} 70. Rf4+ {[%clk 00:00:05]} {[%emt
00:00:01]} Ke5 {[%clk 00:00:08]} {[%emt 00:00:03]} 71. Kg4 {[%clk 00:00:05]}
{[%emt 00:00:01]} Ke6 {[%clk 00:00:08]} {[%emt 00:00:02]} 72. Re4+ {[%clk
00:00:05]} {[%emt 00:00:02]} Kd5 {[%clk 00:00:08]} {[%emt 00:00:03]} 73. Rf4
{[%clk 00:00:05]} {[%emt 00:00:02]} Ke6 {[%clk 00:00:09]} 74. Kh4 {[%clk
00:00:04]} {[%emt 00:00:03]} Ke5 {[%clk 00:00:10]} 75. Rg4 {[%clk 00:00:05]}
{[%emt 00:00:01]} Kf6 {[%clk 00:00:12]} 76. Kh5 {[%clk 00:00:05]} {[%emt
00:00:01]} Rb1 {[%clk 00:00:04]} {[%emt 00:00:09]} 77. Rd4 {[%clk 00:00:04]}
{[%emt 00:00:03]} Ke5 {[%clk 00:00:05]} {[%emt 00:00:02]} 78. Rf4 {[%clk
00:00:05]} Rb3 {[%clk 00:00:05]} {[%emt 00:00:02]} 79. Rg4 {[%clk 00:00:06]}
Kf6 {[%clk 00:00:07]} 80. Kh6 {[%clk 00:00:05]} {[%emt 00:00:03]} Rb1 {[%clk
00:00:05]} {[%emt 00:00:04]} 81. Rf4+ {[%clk 00:00:06]} {[%emt 00:00:01]} Ke5
{[%clk 00:00:06]} 82. Kg5 {[%clk 00:00:08]} Ke6 {[%clk 00:00:08]} 83. g4 {[%clk
00:00:08]} Rb2 {[%clk 00:00:04]} {[%emt 00:00:06]} 84. Kg6 {[%clk 00:00:09]}
Kd5 {[%clk 00:00:04]} {[%emt 00:00:03]} 85. g5 {[%clk 00:00:09]} {[%emt
00:00:02]} Rc2 {[%clk 00:00:05]} {[%emt 00:00:01]} 86. Kh6 {[%clk 00:00:05]}
{[%emt 00:00:06]} Ke5 {[%clk 00:00:04]} {[%emt 00:00:02]} 87. Rh4 {[%clk
00:00:04]} {[%emt 00:00:02]} Rc4 {[%clk 00:00:03]} {[%emt 00:00:04]} 88. Rxc4
{[%clk 00:00:04]} {[%emt 00:00:02]} bxc4 {[%clk 00:00:05]} 89. g6 {[%clk
00:00:05]} c3 {[%clk 00:00:06]} 90. g7 {[%clk 00:00:06]} c2 {[%clk 00:00:08]}
91. g8=Q {[%clk 00:00:05]} {[%emt 00:00:03]} c1=Q+ {[%clk 00:00:08]} {[%emt
00:00:02]} 92. Qg5+ {[%clk 00:00:05]} {[%emt 00:00:02]} Qxg5+ {[%clk 00:00:09]}
{[%emt 00:00:02]} 93. Kxg5 {[%clk 00:00:05]} {[%emt 00:00:01]} Kd5 {[%clk
00:00:11]} 94. b5 {[%clk 00:00:07]} Kc5 {[%clk 00:00:12]} 95. b6 {[%clk
00:00:07]} {[%emt 00:00:01]} Kxb6 {[%clk 00:00:14]} 1/2-1/2

[Event "Grandmaster Triathlon - Blitz (GM2)"]
[Site "Biel, Switzerland"]
[Date "2026.07.19"]
[Round "7.2"]
[White "Vaishali, Rameshbabu"]
[Black "Yip, Carissa"]
[Result "1-0"]
[TimeControl "3 + 2"]
[WhiteTitle "-"]
[BlackTitle "-"]
[WhiteFideId "5091756"]
[BlackFideId "2090732"]
[WhiteElo "2364"]
[BlackElo "2369"]

1. Nc3 {[%clk 00:03:02]} {[%emt 00:00:02]} g6 {[%clk 00:03:03]} {[%emt
00:00:01]} 2. e4 {[%clk 00:03:02]} {[%emt 00:00:02]} Bg7 {[%clk 00:03:04]}
{[%emt 00:00:01]} 3. d4 {[%clk 00:03:03]} {[%emt 00:00:01]} d6 {[%clk
00:03:06]} 4. Be3 {[%clk 00:03:04]} {[%emt 00:00:01]} a6 {[%clk 00:03:07]} 5.
Nf3 {[%clk 00:03:03]} {[%emt 00:00:03]} b5 {[%clk 00:03:07]} {[%emt 00:00:02]}
6. Bd3 {[%clk 00:03:04]} {[%emt 00:00:01]} Bb7 {[%clk 00:03:08]} {[%emt
00:00:02]} 7. h4 {[%clk 00:03:02]} {[%emt 00:00:03]} h6 {[%clk 00:03:07]}
{[%emt 00:00:03]} 8. e5 {[%clk 00:02:58]} {[%emt 00:00:06]} e6 {[%clk
00:03:01]} {[%emt 00:00:09]} 9. Ne4 {[%clk 00:02:36]} {[%emt 00:00:24]} Ne7
{[%clk 00:02:45]} {[%emt 00:00:18]} 10. h5 {[%clk 00:02:28]} {[%emt 00:00:10]}
g5 {[%clk 00:02:45]} {[%emt 00:00:02]} 11. Nfxg5 {[%clk 00:02:25]} {[%emt
00:00:05]} hxg5 {[%clk 00:02:38]} {[%emt 00:00:09]} 12. Bxg5 {[%clk 00:02:26]}
{[%emt 00:00:01]} Bxe4 {[%clk 00:01:46]} {[%emt 00:00:54]} 13. Bxe4 {[%clk
00:02:26]} {[%emt 00:00:01]} d5 {[%clk 00:01:48]} 14. Bd3 {[%clk 00:02:19]}
{[%emt 00:00:09]} Nd7 {[%clk 00:01:43]} {[%emt 00:00:07]} 15. h6 {[%clk
00:02:15]} {[%emt 00:00:06]} c5 {[%clk 00:01:19]} {[%emt 00:00:26]} 16. Rh3
{[%clk 00:01:58]} {[%emt 00:00:18]} Bf8 {[%clk 00:01:19]} {[%emt 00:00:03]} 17.
Qh5 {[%clk 00:01:58]} {[%emt 00:00:02]} cxd4 {[%clk 00:01:15]} {[%emt
00:00:06]} 18. f4 {[%clk 00:00:46]} {[%emt 00:01:14]} Qa5+ {[%clk 00:01:08]}
{[%emt 00:00:09]} 19. Kf1 {[%clk 00:00:40]} {[%emt 00:00:08]} Qc7 {[%clk
00:00:47]} {[%emt 00:00:23]} 20. Kg1 {[%clk 00:00:26]} {[%emt 00:00:16]} Nc5
{[%clk 00:00:37]} {[%emt 00:00:11]} 21. Bf6 {[%clk 00:00:12]} {[%emt 00:00:17]}
Rxh6 {[%clk 00:00:36]} {[%emt 00:00:03]} 22. Qg4 {[%clk 00:00:06]} {[%emt
00:00:08]} Rxh3 {[%clk 00:00:36]} {[%emt 00:00:01]} 23. Qxh3 {[%clk 00:00:07]}
Nxd3 {[%clk 00:00:24]} {[%emt 00:00:15]} 24. cxd3 {[%clk 00:00:08]} {[%emt
00:00:01]} Qc2 {[%clk 00:00:22]} {[%emt 00:00:04]} 25. Rf1 {[%clk 00:00:05]}
{[%emt 00:00:05]} Qxb2 {[%clk 00:00:21]} {[%emt 00:00:03]} 26. f5 {[%clk
00:00:04]} {[%emt 00:00:03]} Qd2 {[%clk 00:00:14]} {[%emt 00:00:09]} 27. Qh5
{[%clk 00:00:04]} {[%emt 00:00:02]} Qe3+ {[%clk 00:00:09]} {[%emt 00:00:07]} 28.
Rf2 {[%clk 00:00:06]} Nxf5 {[%clk 00:00:09]} {[%emt 00:00:02]} 29. Bg5 {[%clk
00:00:06]} {[%emt 00:00:02]} Rc8 {[%clk 00:00:09]} {[%emt 00:00:02]} 30. Bxe3
{[%clk 00:00:07]} {[%emt 00:00:02]} dxe3 {[%clk 00:00:10]} 31. Rf1 {[%clk
00:00:06]} {[%emt 00:00:02]} Ng3 {[%clk 00:00:10]} {[%emt 00:00:02]} 32. Qxf7+
{[%clk 00:00:07]} {[%emt 00:00:01]} Kd8 {[%clk 00:00:10]} {[%emt 00:00:02]} 33.
Qxf8+ {[%clk 00:00:08]} {[%emt 00:00:01]} Kc7 {[%emt 00:00:02]} 34. Rf7+ {[%clk
00:00:06]} {[%emt 00:00:02]} 1-0